fUSD/lending_fUSD_20251123
["ID","MTS","AMOUNT","RATE_DAILY","PERIOD"]
[394742315,1763923851659,-500.0,0.00038356,8]
[394742316,1763923851669,-500.0,0.00038356,8]
[394742317,1763923851678,-500.0,0.00038356,8]
[394742318,1763923851688,-329.07011779,0.00038356,2]
[394742319,1763923851699,-150.0,0.00038356,5]
[394742320,1763923851708,-5261.66733101,0.00038365,2]
[394742321,1763923851718,-515.73736002,0.00038373,5]
[394742322,1763923851728,-513.21148817,0.00038373,5]
[394742323,1763923851737,-500.0,0.00038373,5]
[394742324,1763923851746,-500.0,0.00038373,3]
[394742325,1763923851756,-500.0,0.00038373,5]
[394742326,1763923851765,-498.05224122,0.00038373,5]
[394742327,1763923851774,-500.0,0.00038373,5]
[394742328,1763923851783,-165.04253822,0.00038373,5]
[394742329,1763923851793,-167.82455227,0.00038373,5]
[394742330,1763923851802,-500.0,0.00038373,5]
[394742331,1763923851811,-162.13384807,0.00038373,5]
[394742332,1763923851820,-500.0,0.00038373,5]
[394742333,1763923851829,-178.68100332,0.00038373,5]
[394742334,1763923851839,-500.620874,0.00038373,5]
[394742335,1763923851848,-500.0,0.00038373,5]
[394742336,1763923851857,-500.0,0.00038373,5]
[394742337,1763923851867,-164.54084432,0.00038373,5]
[394742338,1763923851877,-500.0,0.00038373,5]
[394742339,1763923851887,-500.0,0.00038373,5]
[394742340,1763923851898,-2000.0,0.000384,2]
[394742341,1763923851908,-417.4,0.00038521,2]
[394742342,1763923851919,-417.4,0.00038521,2]
[394742343,1763923851930,-417.4,0.00038521,2]
[394742344,1763923851941,-552.75,0.00038521,2]
[394742345,1763923851950,-417.12,0.00038521,2]
[394742346,1763923851960,-194.10072912,0.0003853,2]
[394742347,1763923851970,-2198.29531803,0.00038536,2]
[394742348,1763923851983,-165.31,0.00038537,2]
[394742349,1763923851995,-302.22,0.00038548,2]
[394742350,1763923852006,-5261.66733101,0.00038557,2]
[394742351,1763923852016,-239.55450104,0.00038563,2]
[394742352,1763923852026,-150.0,0.00038628,2]
[394742353,1763923852036,-150.0,0.00038628,2]
[394742354,1763923852046,-1211.3,0.00038628,2]
[394742355,1763923852057,-150.0,0.00038628,2]
[394742356,1763923852066,-1211.3,0.00038628,2]
[394742357,1763923852076,-1211.3,0.00038628,2]
[394742358,1763923852086,-1211.3,0.00038628,2]
[394742359,1763923852097,-468.27,0.00038629,7]
[394742360,1763923852107,-188.91,0.00038629,8]
[394742361,1763923852116,-500.0,0.0003863,14]
[394742362,1763923852126,-500.0,0.0003863,14]
[394742363,1763923852136,-500.0,0.0003863,14]
[394742364,1763923852147,-500.0,0.0003863,14]
[394742365,1763923852156,-500.0,0.0003863,14]
[394742366,1763923852166,-500.0,0.0003863,14]
[394742367,1763923852175,-500.0,0.0003863,14]
[394742368,1763923852185,-500.0,0.0003863,14]
[394742369,1763923852196,-2600.0,0.0003863,7]
[394742370,1763923852205,-500.0,0.0003863,8]
[394742371,1763923852215,-500.0,0.0003863,8]
[394742372,1763923852226,-205.62930186,0.0003863,8]
[394742373,1763923852236,-500.0,0.0003863,8]
[394742374,1763923852246,-500.0,0.0003863,8]
[394742375,1763923852256,-500.0,0.0003863,8]
[394742376,1763923852265,-506.66221337,0.0003863,8]
[394742377,1763923852275,-500.0,0.0003863,8]
[394742378,1763923852286,-500.0,0.0003863,8]
[394742379,1763923852379,-500.0,0.0003863,8]
[394742380,1763923852390,-500.0,0.0003863,8]
[394742381,1763923852400,-500.0,0.0003863,8]
[394742382,1763923852409,-546.66,0.0003863,8]
[394742383,1763923852420,-500.0,0.0003863,8]
[394742384,1763923852429,-500.0,0.0003863,8]
[394742385,1763923852440,-500.56,0.0003863,8]
[394742386,1763923852450,-500.0,0.0003863,8]
[394742387,1763923852459,-500.0,0.0003863,8]
[394742388,1763923852468,-500.0,0.0003863,8]
[394742389,1763923852478,-500.0,0.0003863,8]
[394742390,1763923852488,-500.0,0.0003863,8]
[394742391,1763923852499,-500.0,0.0003863,8]
[394742392,1763923852514,-500.0,0.0003863,8]
[394742393,1763923852527,-500.0,0.0003863,8]
[394742394,1763923852536,-500.0,0.0003863,8]
[394742395,1763923852546,-791.81,0.0003863,8]
[394742396,1763923852556,-500.0,0.0003863,8]
[394742397,1763923852566,-500.0,0.0003863,8]
[394742398,1763923852576,-500.0,0.0003863,8]
[394742399,1763923852586,-500.0,0.0003863,8]
[394742400,1763923852595,-500.0,0.0003863,8]
[394742401,1763923852605,-500.0,0.0003863,8]
[394742402,1763923852615,-500.0,0.0003863,8]
[394742403,1763923852627,-500.0,0.0003863,8]
[394742404,1763923852637,-500.0,0.0003863,8]
[394742405,1763923852647,-500.0,0.0003863,8]
[394742406,1763923852657,-581.2,0.0003863,8]
[394742407,1763923852666,-500.0,0.0003863,8]
[394742408,1763923852675,-500.0,0.0003863,8]
[394742409,1763923852685,-519.04,0.0003863,8]
[394742410,1763923852696,-569.19,0.0003863,8]
[394742411,1763923852706,-500.0,0.0003863,8]
[394742412,1763923852715,-500.0,0.0003863,8]
[394742413,1763923852725,-500.0,0.0003863,8]
[394742414,1763923852734,-841.49,0.0003863,8]
[394742415,1763923852744,-500.0,0.0003863,8]
[394742416,1763923852754,-500.0,0.0003863,8]
[394742417,1763923852763,-500.0,0.0003863,8]
[394742418,1763923852773,-505.39,0.0003863,8]
[394742419,1763923852782,-532.1,0.0003863,8]
[394742420,1763923852792,-500.0,0.0003863,8]
[394742421,1763923852802,-500.0,0.0003863,8]
[394742422,1763923852811,-500.0,0.0003863,8]
[394742423,1763923852821,-679.05,0.0003863,8]
[394742424,1763923852830,-544.69,0.0003863,8]
[394742425,1763923852840,-500.0,0.0003863,8]
[394742426,1763923852849,-500.0,0.0003863,8]
[394742427,1763923852859,-500.0,0.0003863,8]
[394742428,1763923852868,-898.23,0.0003863,8]
[394742429,1763923852877,-500.0,0.0003863,8]
[394742430,1763923852886,-721.42,0.0003863,8]
[394742431,1763923852896,-500.0,0.0003863,8]
[394742432,1763923852906,-500.0,0.0003863,8]
[394742433,1763923852915,-500.0,0.0003863,8]
[394742434,1763923852924,-500.0,0.0003863,8]
[394742435,1763923852933,-500.0,0.0003863,8]
[394742436,1763923852942,-500.0,0.0003863,8]
[394742437,1763923852951,-567.18,0.0003863,8]
[394742438,1763923852960,-500.0,0.0003863,8]
[394742439,1763923852970,-832.11,0.0003863,8]
[394742440,1763923852979,-500.0,0.0003863,8]
[394742441,1763923852990,-455.31186231,0.0003863,8]
[394742442,1763923853000,-647.81,0.0003863,8]
[394742443,1763923853009,-500.0,0.0003863,8]
[394742444,1763923853021,-500.0,0.0003863,8]
[394742445,1763923853033,-500.0,0.0003863,8]
[394742446,1763923853044,-500.0,0.0003863,8]
[394742447,1763923853054,-500.0,0.0003863,8]
[394742448,1763923853064,-500.0,0.0003863,8]
[394742449,1763923853074,-500.0,0.0003863,8]
[394742450,1763923853083,-500.0,0.0003863,8]
[394742451,1763923853093,-500.0,0.0003863,8]
[394742452,1763923853103,-500.0,0.0003863,8]
[394742453,1763923853113,-500.0,0.0003863,8]
[394742454,1763923853122,-268.36152913,0.0003863,8]
[394742455,1763923853131,-1255.24,0.0003863,8]
[394742456,1763923853140,-500.0,0.0003863,8]
[394742457,1763923853150,-505.2,0.0003863,8]
[394742458,1763923853159,-652.66,0.0003863,8]
[394742459,1763923853168,-521.9,0.0003863,8]
[394742460,1763923853178,-227.88103029,0.0003863,8]
[394742461,1763923853199,-272.11896971,0.0003863,8]
[394742462,1763923853209,-23.5551254,0.0003863,8]
[394742463,1763923853270,-476.4448746,0.0003863,8]
[394742464,1763923853279,-103.55512541,0.0003863,8]
[394742465,1763923853291,-396.44487459,0.0003863,8]
[394742466,1763923853301,-151.4182709,0.0003863,8]
[394742477,1763924291490,708.88,0.00013699,2]
[394742481,1763924434311,-212.62785185,0.00020187,2]
[394742482,1763924434487,-181.37214815,0.00020187,2]
[394742483,1763924468969,334.48290672,7.945e-05,2]
[394742484,1763924468995,288.56668302,7.945e-05,2]
[394742485,1763924469026,2069.56285534,7.945e-05,2]
[394742486,1763924469048,2069.56285534,7.945e-05,2]
[394742487,1763924469069,2069.56285534,7.945e-05,2]
[394742488,1763924469091,2069.56285534,7.945e-05,2]
[394742489,1763924469118,846.4304799,7.945e-05,2]
[394742492,1763924528067,4217.465806,7.945e-05,2]
[394742493,1763924535632,500.0,0.00017,30]
[394742494,1763924535952,500.0,0.00017,30]
[394742495,1763924536303,500.0,0.00017,30]
[394742496,1763924536622,500.0,0.000165,30]
[394742497,1763924536936,500.0,0.000165,30]
[394742498,1763924537271,584.76789793,0.000165,30]
[394742499,1763924541814,626.9505919,0.00017,30]
[394742500,1763924544258,500.0,0.00017,30]
[394742501,1763924544581,500.0,0.00017,30]
[394742502,1763924544917,500.0,0.00017,30]
[394742503,1763924545268,500.0,0.000165,30]
[394742504,1763924545917,800.0,0.000165,30]
[394742563,1763925031387,-708.88,0.00020187,2]
[394742564,1763925031397,-200.0,0.00020314,2]
[394742565,1763925031407,-195.0,0.0002044,2]
[394742566,1763925031416,-200.0,0.00021166,2]
[394742567,1763925031425,-195.0,0.00021381,2]
[394742568,1763925031434,-195.0,0.00022206,2]
[394742569,1763925031443,-154.55748469,0.00022206,2]
[394742570,1763925031451,-195.0,0.00022206,2]
[394742571,1763925031461,-173.64672828,0.00022206,2]
[394742572,1763925031473,-26.35327172,0.00022206,2]
[394742573,1763925031481,-250.0,0.00022206,2]
[394742574,1763925031491,-2500.0,0.00022206,2]
[394742575,1763925031500,-195.0,0.00022206,2]
[394742576,1763925031510,-500.0,0.00023798,2]
[394742577,1763925031519,-500.0,0.00024147,2]
[394742578,1763925031532,-500.0,0.00024394,2]
[394742579,1763925031541,-500.0,0.00025066,7]
[394742580,1763925031551,-500.0,0.00025341,7]
[394742581,1763925031560,-500.0,0.00026079,7]
[394742582,1763925031569,-1200.0,0.00026439,2]
[394742583,1763925031578,-250.0,0.00026674,2]
[394742584,1763925031588,-708.88,0.00026676,2]
[394742585,1763925031597,-500.0,0.00027325,7]
[394742587,1763925031606,-500.0,0.00027878,7]
[394742589,1763925031615,-500.0,0.00028028,7]
[394742590,1763925031624,-500.0,0.00028198,7]
[394742591,1763925031633,-1852.42,0.00028221,2]
[394742592,1763925031642,-500.0,0.00028242,7]
[394742593,1763925031651,-168.0,0.00028375,7]
[394742594,1763925031660,-1693.61,0.0002838,2]
[394742595,1763925031669,-2751.0,0.00028385,2]
[394742596,1763925031679,-500.0,0.00028387,5]
[394742597,1763925031688,-168.0,0.00028396,2]
[394742598,1763925031698,-1000.0,0.00028402,2]
[394742600,1763925031707,-500.0,0.00028405,7]
[394742601,1763925031716,-1500.0,0.00028453,120]
[394742602,1763925031726,-1077.04,0.0002846,120]
[394742603,1763925031736,-306.0,0.00028632,2]
[394742604,1763925031746,-151.0,0.00028659,2]
[394742605,1763925031755,-151.0,0.00028659,2]
[394742606,1763925031765,-151.0,0.00028659,2]
[394742607,1763925031774,-151.0,0.00028659,2]
[394742608,1763925031783,-151.0,0.00028659,2]
[394742609,1763925031792,-151.0,0.00028659,2]
[394742610,1763925031802,-151.0,0.00028659,2]
[394742611,1763925031812,-151.0,0.00028659,2]
[394742612,1763925031821,-229.89398899,0.00028659,2]
[394742613,1763925031831,-6333.71,0.00028676,2]
[394742614,1763925031841,-168.0,0.00028739,7]
[394742615,1763925031850,-500.0,0.00028829,7]
[394742616,1763925031859,-168.0,0.00028846,2]
[394742617,1763925031868,-303.0,0.00028939,2]
[394742618,1763925031878,-200.0,0.00028987,2]
[394742619,1763925031887,-303.0,0.00029275,2]
[394742620,1763925031896,-303.0,0.00029323,2]
[394742621,1763925031905,-168.0,0.00029377,2]
[394742622,1763925031914,-168.0,0.00029405,2]
[394742623,1763925031927,-168.0,0.00029437,2]
[394742624,1763925031936,-303.0,0.0002945,7]
[394742625,1763925031945,-304.0,0.00029472,7]
[394742626,1763925031954,-168.0,0.00029697,2]
[394742627,1763925031964,-168.0,0.00029744,2]
[394742628,1763925031973,-303.0,0.00029853,2]
[394742629,1763925031983,-244.27,0.00029928,2]
[394742630,1763925031992,-500.0,0.00029985,7]
[394742631,1763925032001,-168.0,0.00030026,2]
[394742632,1763925032012,-304.0,0.00030242,2]
[394742633,1763925032023,-168.0,0.00030263,2]
[394742634,1763925032031,-168.0,0.00030305,2]
[394742635,1763925032042,-500.0,0.0003038,7]
[394742636,1763925032051,-168.0,0.00030527,2]
[394742637,1763925032062,-168.0,0.00030774,2]
[394742638,1763925032071,-168.0,0.00030782,2]
[394742639,1763925032080,-802.96936282,0.00030847,7]
[394742640,1763925032091,-500.0,0.00030968,7]
[394742641,1763925032101,-168.0,0.00031134,7]
[394742642,1763925032110,-168.0,0.00031164,2]
[394742643,1763925032119,-244.27,0.00031298,2]
[394742644,1763925032130,-191.16,0.00031507,120]
[394742645,1763925032139,-660761.84635402,0.00031924,2]
[394742646,1763925032150,-34325.61492551,0.00031924,2]
[394742647,1763925032162,-64912.53872047,0.00031924,2]
[394742648,1763925032171,-3850.64414036,0.00031934,2]
[394742649,1763925032180,-1000.0,0.00031952,2]
[394742650,1763925032189,-543.71168959,0.00031962,7]
[394742651,1763925032198,-160.55159976,0.00031962,15]
[394742652,1763925032208,-500.0,0.00031973,5]
[394742653,1763925032217,-500.0,0.00031973,5]
[394742654,1763925032227,-562.18600975,0.00031973,2]
[394742655,1763925032235,-500.0,0.00031985,7]
[394742656,1763925032244,-602.69930886,0.00032017,120]
[394742657,1763925032255,-474.34069114,0.00032017,120]
[394742658,1763925032265,-9142.91155175,0.00032024,2]
[394742659,1763925032274,-500.0,0.00032024,2]
[394742660,1763925032284,-500.0,0.00032024,2]
[394742661,1763925032294,-500.0,0.00032024,2]
[394742662,1763925032303,-500.0,0.00032024,2]
[394742663,1763925032315,-500.0,0.00032024,2]
[394742664,1763925032324,-500.0,0.00032024,2]
[394742665,1763925032333,-500.0,0.00032024,2]
[394742666,1763925032343,-339.13372851,0.00032024,2]
[394742667,1763925032352,-500.0,0.00032024,2]
[394742668,1763925032361,-500.0,0.00032024,2]
[394742669,1763925032369,-500.0,0.00032024,2]
[394742670,1763925032378,-500.0,0.00032024,2]
[394742671,1763925032387,-500.0,0.00032024,2]
[394742672,1763925032396,-500.0,0.00032024,2]
[394742673,1763925032406,-500.0,0.00032024,2]
[394742674,1763925032415,-500.0,0.00032024,2]
[394742675,1763925032423,-500.0,0.00032024,2]
[394742676,1763925032432,-500.0,0.00032024,2]
[394742677,1763925032440,-500.0,0.00032024,2]
[394742678,1763925032449,-590.8203937,0.00032024,2]
[394742679,1763925032458,-500.0,0.00032024,2]
[394742680,1763925032467,-500.0,0.00032024,2]
[394742681,1763925032476,-500.0,0.00032024,2]
[394742682,1763925032484,-500.0,0.00032024,2]
[394742683,1763925032493,-26163.55856606,0.00032025,2]
[394742684,1763925032530,-250.18730255,0.00032025,2]
[394742685,1763925032542,-934.37977099,0.00032025,2]
[394742699,1763925037357,-2500.0,0.00031925,2]
[394742700,1763925037367,-65905.93487775,0.00032025,2]
[394742701,1763925037407,-4130.26,0.00032025,2]
[394742702,1763925037418,-435.68171857,0.00032025,2]
[394742703,1763925037513,-533.26948663,0.00032025,2]
[394742892,1763925039504,-4451.77200289,0.00032025,2]
[394742896,1763925039526,-1262.40818107,0.00032025,2]
[394742901,1763925039568,-8861.00672097,0.00032025,2]
[394743325,1763925043584,-9523.99957396,0.00032025,2]
[394743335,1763925043667,-719.2951,0.00032025,2]
[394743337,1763925043678,-43138.52759065,0.00032025,2]
[394743347,1763925043762,-1469.48006998,0.00032025,2]
[394743350,1763925043776,-920.08680137,0.00032025,2]
[394743352,1763925043790,-3297.37900462,0.00032025,2]
[394743354,1763925043801,-94408.77560194,0.00032025,2]
[394743356,1763925043812,-404.8943372,0.00032034,2]
[394743359,1763925043825,-150.0,0.00032034,2]
[394743361,1763925043834,-412.47981241,0.00032073,5]
[394743362,1763925043843,-533.56179499,0.00032073,5]
[394743363,1763925043853,-359.99,0.000321,30]
[394743364,1763925043862,-323.55,0.000321,7]
[394743365,1763925043873,-2396.0,0.00032494,5]
[394743366,1763925043883,-900.0,0.00032555,7]
[394743367,1763925043892,-626.9505919,0.00032564,7]
[394743368,1763925043901,-800.0,0.00032701,7]
[394743369,1763925043911,-3850.64414035,0.00032819,2]
[394743370,1763925043921,-500.0,0.00032877,7]
[394743371,1763925043931,-500.0,0.00032877,7]
[394743372,1763925043941,-500.0,0.00032877,7]
[394743373,1763925043950,-500.0,0.00032877,7]
[394743374,1763925043959,-274.37294649,0.00032877,7]
[394743376,1763925043969,-922.0,0.00033,2]
[394743378,1763925043978,-164.0,0.00033,14]
[394743379,1763925043988,-708.88,0.00033165,2]
[394743381,1763925043997,-562.18600971,0.00033461,2]
[394743383,1763925044006,-3850.64414035,0.00033704,2]
[394743385,1763925044016,-212.081,0.00034287,38]
[394743387,1763925044027,-3457.703,0.00034287,38]
[394743389,1763925044037,-150.0,0.00034496,7]
[394743391,1763925044047,-150.0,0.00034496,7]
[394743393,1763925044058,-164.0,0.00034521,30]
[394743395,1763925044067,-3850.64414035,0.00034589,2]
[394743397,1763925044077,-359.99,0.000346,30]
[394743399,1763925044087,-323.55,0.000346,14]
[394743401,1763925044098,-562.18600971,0.00034949,2]
[394743403,1763925044107,-461.0,0.00035,2]
[394743405,1763925044117,-576.0,0.00035402,2]
[394743407,1763925044127,-822.0,0.00035402,2]
[394743409,1763925044139,-1601.0,0.00035402,2]
[394743412,1763925044149,-1256.0,0.00035402,2]
[394743414,1763925044159,-659.0,0.00035402,2]
[394743416,1763925044169,-561.0,0.00035402,2]
[394743418,1763925044179,-2659.0,0.00035402,2]
[394743419,1763925044188,-6497.0,0.00035402,2]
[394743422,1763925044199,-298.28,0.00035402,2]
[394743424,1763925044208,-301.72,0.00035402,2]
[394743426,1763925044218,-3850.64414035,0.00035474,2]
[394743428,1763925044228,-1000.0,0.00035502,2]
[394743429,1763925044237,-1077.04,0.00035575,120]
[394743432,1763925044247,-289.0,0.0003589,7]
[394743433,1763925044257,-1036.94,0.00036,2]
[394743436,1763925044267,-153.0,0.00036336,2]
[394743438,1763925044277,-153.0,0.00036336,2]
[394743440,1763925044287,-153.0,0.00036336,2]
[394743442,1763925044297,-153.0,0.00036336,2]
[394743444,1763925044306,-153.0,0.00036336,2]
[394743446,1763925044315,-153.0,0.00036336,2]
[394743448,1763925044325,-153.0,0.00036336,2]
[394743450,1763925044334,-153.0,0.00036336,2]
[394743452,1763925044343,-153.0,0.00036336,2]
[394743454,1763925044352,-153.0,0.00036338,2]
[394743455,1763925044363,-153.0,0.00036338,2]
[394743458,1763925044373,-153.0,0.00036338,2]
[394743460,1763925044384,-153.0,0.00036338,2]
[394743462,1763925044393,-153.0,0.00036338,2]
[394743464,1763925044403,-153.0,0.00036338,2]
[394743466,1763925044413,-153.0,0.00036338,2]
[394743468,1763925044422,-153.0,0.00036339,2]
[394743469,1763925044430,-153.0,0.00036339,2]
[394743471,1763925044440,-153.0,0.00036341,2]
[394743473,1763925044450,-153.0,0.00036341,2]
[394743475,1763925044460,-153.0,0.00036341,2]
[394743477,1763925044469,-153.0,0.00036341,2]
[394743479,1763925044478,-153.0,0.00036341,2]
[394743481,1763925044487,-153.0,0.00036341,2]
[394743483,1763925044497,-153.0,0.00036341,2]
[394743485,1763925044506,-153.0,0.00036341,2]
[394743487,1763925044516,-153.0,0.00036341,2]
[394743489,1763925044525,-153.0,0.00036343,2]
[394743491,1763925044535,-153.0,0.00036343,2]
[394743493,1763925044544,-153.0,0.00036343,2]
[394743495,1763925044554,-153.0,0.00036343,2]
[394743497,1763925044563,-153.0,0.00036343,2]
[394743499,1763925044572,-153.0,0.00036343,2]
[394743501,1763925044582,-153.0,0.00036343,2]
[394743503,1763925044591,-153.0,0.00036344,2]
[394743505,1763925044600,-153.0,0.00036344,2]
[394743507,1763925044610,-1538.80672262,0.00036356,2]
[394743509,1763925044618,-3850.64414035,0.0003636,2]
[394743511,1763925044627,-150.0,0.00036412,7]
[394743513,1763925044636,-562.18600971,0.00036437,2]
[394743515,1763925044646,-150.55,0.0003699,2]
[394743517,1763925044655,-23623.57128087,0.00037,2]
[394743519,1763925044664,-461.0,0.00037,2]
[394743521,1763925044674,-872.54,0.00037083,5]
[394743523,1763925044684,-359.99,0.000372,30]
[394743525,1763925044694,-323.55,0.000372,14]
[394743527,1763925044703,-1538.80672262,0.00037242,2]
[394743529,1763925044713,-3850.64414035,0.00037245,2]
[394743531,1763925044722,-247.503,0.00037247,2]
[394743533,1763925044731,-150.0,0.00037247,2]
[394743535,1763925044741,-250.0,0.00037247,2]
[394743537,1763925044750,-151.243,0.00037247,2]
[394743539,1763925044759,-250.0,0.00037247,2]
[394743541,1763925044768,-223.225,0.00037247,2]
[394743543,1763925044778,-162.0,0.00037247,2]
[394743545,1763925044787,-1320.0,0.00037247,2]
[394743547,1763925044797,-3436.0,0.00037247,2]
[394743549,1763925044806,-609.0,0.00037247,2]
[394743551,1763925044816,-200.0,0.00037785,2]
[394743553,1763925044825,-2200.0,0.00037808,7]
[394743555,1763925044834,-2094.99,0.00037808,2]
[394743557,1763925044844,-562.18600971,0.00037924,2]
[394743559,1763925044854,-701.23,0.00037973,2]
[394743561,1763925044863,-190.31502429,0.0003799,2]
[394743563,1763925044873,-32778.91904542,0.00038,38]
[394743601,1763925045530,-17221.08095458,0.00038,38]
[394743603,1763925045539,-500.0,0.00038082,7]
[394743605,1763925045548,-900.0,0.00038082,7]
[394743607,1763925045557,-1538.80672262,0.00038128,2]
[394743609,1763925045567,-3850.64414035,0.0003813,2]
[394743611,1763925045576,-300.0,0.00038179,2]
[394743613,1763925045584,-156.90510009,0.00038329,7]
[394743615,1763925045594,-155.8140463,0.00038329,7]
[394743617,1763925045603,-592.4373076,0.00038335,2]
[394743619,1763925045612,-1200.0,0.00038336,20]
[394743621,1763925045621,-150.55,0.00038346,2]
[394743624,1763925045630,-150.55,0.00038346,2]
[394743625,1763925045640,-158.71903968,0.00038355,20]
[394743627,1763925045650,-868.7,0.00038356,5]
[394743630,1763925045660,-274.17381279,0.00038356,8]
[394743632,1763925045669,-500.0,0.00038356,8]
[394743634,1763925045679,-500.0,0.00038356,8]
[394743636,1763925045695,-500.0,0.00038356,8]
[394743638,1763925045705,-500.0,0.00038356,8]
[394743641,1763925045715,-156.741129,0.00038356,8]
[394743642,1763925045724,-485.716053,0.00038356,8]
[394743645,1763925045735,-326.206516,0.00038356,8]
[394743647,1763925045743,-579.296223,0.00038356,8]
[394743649,1763925045753,-153.191146,0.00038356,8]
[394743651,1763925045764,-500.0,0.00038356,8]
[394743653,1763925045773,-544.62,0.00038356,8]
[394743655,1763925045782,-500.0,0.00038356,8]
[394743656,1763925045791,-500.0,0.00038356,8]
[394743657,1763925045800,-734.21,0.00038356,8]
[394743658,1763925045809,-500.0,0.00038356,8]
[394743659,1763925045819,-200.9466945,0.00038356,8]
[394743660,1763925045827,-500.0,0.00038356,8]
[394743661,1763925045836,-500.0,0.00038356,8]
[394743662,1763925045845,-500.0,0.00038356,8]
[394743663,1763925045854,-500.0,0.00038356,8]
[394743664,1763925045862,-500.0,0.00038356,8]
[394743665,1763925045872,-500.0,0.00038356,8]
[394743666,1763925045881,-500.0,0.00038356,8]
[394743667,1763925045890,-633.1716403,0.00038356,8]
[394743668,1763925045899,-609.28382213,0.00038356,8]
[394743669,1763925045908,-500.0,0.00038356,8]
[394743670,1763925045917,-500.0,0.00038356,8]
[394743671,1763925045926,-500.0,0.00038356,8]
[394743672,1763925045935,-500.0,0.00038356,8]
[394743675,1763925045949,-500.0,0.00038356,8]
[394743677,1763925045957,-500.0,0.00038356,8]
[394743679,1763925045967,-500.0,0.00038356,8]
[394743681,1763925045976,-500.0,0.00038356,8]
[394743683,1763925045985,-500.0,0.00038356,8]
[394743685,1763925045994,-500.0,0.00038356,8]
[394743687,1763925046003,-625.12,0.00038356,8]
[394743689,1763925046013,-500.0,0.00038356,8]
[394743691,1763925046025,-500.0,0.00038356,8]
[394743693,1763925046034,-500.0,0.00038356,8]
[394743695,1763925046044,-500.0,0.00038356,8]
[394743697,1763925046053,-527.93,0.00038356,8]
[394743699,1763925046066,-500.0,0.00038356,8]
[394743701,1763925046075,-713.35,0.00038356,8]
[394743703,1763925046084,-500.0,0.00038356,8]
[394743705,1763925046094,-500.0,0.00038356,8]
[394743707,1763925046104,-500.0,0.00038356,8]
[394743709,1763925046113,-593.19,0.00038356,8]
[394743711,1763925046123,-500.0,0.00038356,8]
[394743713,1763925046132,-643.23,0.00038356,8]
[394743715,1763925046141,-500.0,0.00038356,8]
[394743717,1763925046151,-500.0,0.00038356,8]
[394743719,1763925046160,-500.0,0.00038356,8]
[394743721,1763925046170,-523.59141586,0.00038356,8]
[394743723,1763925046180,-500.0,0.00038356,8]
[394743725,1763925046189,-500.0,0.00038356,8]
[394743727,1763925046199,-500.0,0.00038356,8]
[394743729,1763925046209,-524.82472869,0.00038356,8]
[394743731,1763925046218,-500.0,0.00038356,8]
[394743733,1763925046227,-500.0,0.00038356,8]
[394743735,1763925046236,-500.0,0.00038356,8]
[394743737,1763925046245,-420.59153474,0.00038356,8]
[394743739,1763925046254,-500.0,0.00038356,8]
[394743741,1763925046263,-500.0,0.00038356,8]
[394743743,1763925046272,-500.0,0.00038356,8]